bitfinex/quotes_ETHUSD_20220111
["timestamp","ask_amount","ask_price","bid_price","bid_amount"]
[1641890595479,0.00478457,3108.2,3107.1,0.3]
[1641890595678,0.00478457,3108.2,3107.2,0.00454739]
[1641890595886,0.83265468,3108.1,3107.5,1.13429313]
[1641890596080,0.83265468,3108.1,3107.5,1.43429313]
[1641890596081,3.56957638,3108.1,3107.5,1.43429313]
[1641890596281,3.56957638,3108.1,3107.6,0.00227369]
[1641890596481,4.37403638,3108.1,3107.6,0.00227369]
[1641890596679,1.63711468,3108.1,3107.6,0.00227369]
[1641890596883,1.63711468,3108.1,3106.9,0.00625266]
[1641890597084,1.63711468,3108.1,3107.6,0.00227369]
[1641890597284,0.00478457,3108.2,3107.6,1.3855204]
[1641890597581,0.00478457,3108.2,3107.6,1.98779409]
[1641890597786,0.00478457,3108.2,3107.7,0.00170527]
[1641890598283,0.00478457,3108.2,3107.7,0.85903818]
[1641890598481,0.00478457,3108.2,3108.1,1.43134911]
[1641890598886,0.00478457,3108.2,3108.1,20.49134911]
[1641890599098,0.00113685,3108.2,3108.1,1.73134911]
[1641890599535,0.00113685,3108.2,3108.1,2.03134911]
[1641890601844,0.00113685,3108.2,3108.1,1.73134911]
[1641890604077,0.00478457,3108.2,3108.1,1.73134911]
[1641890604275,0.00478457,3108.2,3107.8,0.08043]
[1641890605478,0.00478457,3108.2,3107.7,0.00170527]
[1641890605479,2.37126247,3108.1,3107.7,0.00170527]
[1641890605778,2.37126247,3108.1,3107.3,0.00397896]
[1641890605978,2.37126247,3108.1,3107.3,0.80831896]
[1641890605979,1.56686047,3108.1,3107.3,0.80831896]
[1641890606179,0.76248047,3108.1,3107.4,0.05676408]
[1641890606376,0.76248047,3108.1,3107.4,0.00341054]
[1641890606577,0.76248047,3108.1,3107.5,0.00284212]
[1641890606820,0.76248047,3108.1,3107.3,0.08440896]
[1641890607021,0.76248047,3108.1,3107.3,0.88874896]
[1641890607221,0.76248047,3108.1,3107.4,0.00341054]
[1641890607425,0.76248047,3108.1,3107.4,0.55085613]
[1641890607625,0.76248047,3108.1,3107.4,0.85085613]
[1641890607821,0.76248047,3108.1,3107.5,0.00284212]
[1641890608623,2.7369743,3108.0,3107.5,0.00284212]
[1641890609424,2.7369743,3108.0,3107.3,0.00397896]
[1641890609624,2.7369743,3108.0,3107.4,0.88464]
[1641890609824,0.00364728,3108.1,3107.5,0.06521738]
[1641890610027,0.00364728,3108.1,3107.6,0.38043]
[1641890610225,0.00364728,3108.1,3107.7,19.56421]
[1641890610476,0.00364728,3108.1,3107.8,0.08043]
[1641890610672,0.00364728,3108.1,3107.9,1.26065235]
[1641890610870,0.00364728,3108.1,3107.9,1.86065235]
[1641890611071,0.00364728,3108.1,3107.9,1.89181339]
[1641890611272,0.00364728,3108.1,3107.9,3.84277269]
[1641890611472,0.00364728,3108.1,3107.9,6.73612269]
[1641890611672,0.00364728,3108.1,3107.9,10.09075593]
[1641890611871,0.00364728,3108.1,3108.0,0.08042]
[1641890613274,0.7918135,3108.1,3108.0,0.08042]
[1641890613574,0.00364728,3108.1,3108.0,0.08042]
[1641890614236,0.00113685,3108.2,3108.0,0.08042]
[1641890614634,0.00113685,3108.2,3108.0,0.3]
[1641890614836,0.00113685,3108.2,3108.0,1.5451752]
[1641890615136,0.00113685,3108.2,3108.0,2.1451752]
[1641890615935,0.00113685,3108.2,3108.0,2.9493552]
[1641890616234,0.70900413,3108.7,3108.0,2.9493552]
[1641890616634,0.00227369,3108.6,3108.0,2.9493552]
[1641890616833,0.71850216,3108.6,3108.0,2.9493552]
[1641890617035,0.00170527,3108.5,3108.0,2.9493552]
[1641890617240,0.00170527,3108.5,3108.2,0.80413]
[1641890617436,9.4451096,3109.4,3108.2,0.80413]
[1641890617437,0.00113685,3108.4,3108.2,0.80413]
[1641890617635,0.00113685,3108.4,3108.2,1.40413]
[1641890617839,0.00511581,3109.1,3108.2,1.40413]
[1641890618080,0.00511581,3109.1,3108.2,0.6]
[1641890618284,0.72646163,3108.9,3108.2,0.3]
[1641890618484,0.72646163,3108.9,3108.5,1.48436565]
[1641890618685,0.00341054,3108.8,3108.1,1.90811]
[1641890618883,0.00341054,3108.8,3108.0,0.3]
[1641890619085,0.00284212,3108.7,3107.8,0.6]
[1641890619482,3.21083953,3108.8,3107.9,0.00170527]
[1641890619683,0.77168239,3108.4,3108.0,1.32394403]
[1641890620083,0.77168239,3108.4,3108.0,1.92394403]
[1641890620783,0.8042773,3108.3,3108.0,1.92394403]
[1641890621184,0.8042773,3108.3,3108.0,0.3]
[1641890621385,0.8042773,3108.3,3107.8,0.0022737]
[1641890621585,0.77168239,3108.4,3107.8,0.0022737]
[1641890621822,0.77168239,3108.4,3107.7,0.00284212]
[1641890622230,0.8042783,3108.3,3107.7,1.50666122]
[1641890622624,0.8042783,3108.3,3107.8,0.0022737]
[1641890624728,1.57596239,3108.4,3107.8,0.0022737]
[1641890624729,0.77168239,3108.4,3107.8,0.0022737]
[1641890624927,1.6086529,3108.2,3107.8,0.0022737]
[1641890625124,1.6086529,3108.2,3107.1,3.5596493]
[1641890625125,1.6086529,3108.2,3107.4,0.00454739]
[1641890625326,3.6989334,3108.3,3107.4,0.00454739]
[1641890625327,0.2337,3108.3,3107.4,0.00454739]
[1641890625575,2.97078664,3108.3,3107.2,0.00568424]
[1641890625774,0.70609143,3107.6,3107.5,0.54749488]
[1641890625976,0.80446,3107.8,3107.5,0.84749488]
[1641890626176,0.80446,3107.8,3107.5,0.85147385]
[1641890626375,1.6089053,3107.8,3107.6,0.00341054]
[1641890627175,2.73735926,3107.7,3107.6,0.00341054]
[1641890627575,3.4362829,3107.7,3106.8,0.00795793]
[1641890627876,2.73735926,3107.7,3107.0,1.27754363]
[1641890628082,2.73735926,3107.7,3107.0,1.87754363]
[1641890628276,2.73735926,3107.7,3107.1,0.00625266]
[1641890628476,2.73735926,3107.7,3107.1,0.55376486]
[1641890628683,2.73735926,3107.7,3107.1,0.58684725]
[1641890628880,1.73718942,3108.2,3107.5,1.30280929]
[1641890629079,1.73718942,3108.2,3107.6,0.80431]
[1641890629325,1.73718942,3108.2,3107.6,1.10772054]
[1641890629525,1.73718942,3108.2,3107.7,0.30284212]
[1641890629726,2.54149412,3108.2,3107.7,0.30284212]
[1641890629926,2.54149412,3108.2,3107.8,0.0022737]
[1641890630328,2.54149412,3108.2,3107.6,0.00341054]
[1641890630329,2.7369818,3108.1,3107.6,0.00341054]
[1641890630925,2.7369818,3108.1,3107.6,0.80772054]
[1641890631126,2.7369818,3108.1,3107.7,0.54746459]
[1641890631329,2.7369818,3108.1,3107.8,0.02799649]
[1641890631627,2.7369818,3108.1,3107.7,0.82773478]
[1641890631829,2.7369818,3108.1,3107.7,0.54746459]
[1641890631830,0.80547805,3108.0,3107.7,0.54746459]
[1641890632427,0.80547805,3108.0,3107.4,1.35182459]
[1641890632827,0.80547805,3108.0,3107.5,0.00170527]
[1641890633075,0.00113685,3108.0,3107.5,0.00170527]
[1641890634279,0.01025349,3108.0,3107.5,0.00170527]
[1641890634975,0.01025349,3108.0,3107.4,0.30227369]
[1641890635181,0.03485248,3107.9,3107.4,0.30227369]
[1641890635377,0.81465349,3108.0,3107.4,0.30227369]
[1641890635583,0.01025349,3108.0,3107.4,0.30227369]
[1641890635785,2.73709901,3107.9,3107.5,18.77221322]
[1641890636077,2.73709901,3107.9,3107.6,1.10427]
[1641890636276,2.73709901,3107.9,3107.7,0.80413]
[1641890636476,0.01025349,3108.0,3107.7,1.13758791]
[1641890636742,0.01025349,3108.0,3107.8,2.02653781]
[1641890636923,0.01025349,3108.0,3107.8,2.32653781]
[1641890637523,0.01025349,3108.0,3107.9,18.76]
[1641890637727,0.01025349,3108.0,3107.8,2.62653781]
[1641890637923,0.01025349,3108.0,3107.8,2.32653781]
[1641890638125,0.01025349,3108.0,3107.8,2.29563471]
[1641890638328,0.01025349,3108.0,3107.9,5.2473592]
[1641890640325,0.01025349,3108.0,3107.9,24.0877792]
[1641890640575,0.01025349,3108.0,3107.9,24.4697792]
[1641890640576,0.00115349,3108.0,3107.9,24.4697792]
[1641890640778,0.00115349,3108.0,3107.9,27.4207385]
[1641890640990,0.00115349,3108.0,3107.9,28.33289853]
[1641890641182,6.48515458,3109.5,3108.9,1.28681751]
[1641890641382,6.48515458,3109.5,3109.0,0.80399]
[1641890641580,0.00625266,3109.1,3108.7,2.41194]
[1641890641776,0.00625266,3109.1,3108.7,2.71194]
[1641890641977,0.00568424,3109.0,3108.7,2.71194]
[1641890642178,0.00568424,3109.0,3108.7,1.60797]
[1641890642378,0.00568424,3109.0,3108.3,1.25839]
[1641890642379,0.72623369,3108.9,3108.3,2.78612]
[1641890642579,0.72623369,3108.9,3108.1,1.60829]
[1641890642781,0.00454739,3108.8,3108.1,1.60829]
[1641890642979,0.804221,3108.5,3107.9,1.30996203]
[1641890643277,0.03082481,3108.4,3107.9,1.30996203]
[1641890643484,0.0022737,3108.4,3107.9,1.30996203]
[1641890643676,0.00170527,3108.3,3108.1,0.80422]
[1641890644079,0.00113685,3108.2,3108.1,1.10422]
[1641890644522,0.00113685,3108.2,3108.1,1.81084272]
[1641890645323,0.00113685,3108.2,3108.1,1.76084272]
[1641890647524,0.00113685,3108.2,3108.1,2.30819538]
[1641890647978,0.00113685,3108.2,3108.1,2.60819538]
[1641890648174,0.00113685,3108.2,3108.1,2.30819538]
[1641890649177,0.00113685,3108.2,3108.1,2.32179724]
[1641890650578,0.00113685,3108.2,3108.1,1.77444458]
[1641890651740,0.00113685,3108.2,3108.1,1.36517402]
[1641890651933,0.00113685,3108.2,3108.1,0.56095402]
[1641890652132,0.00113685,3108.2,3108.1,5.402e-05]
[1641890652133,5.85113685,3108.2,3108.1,5.402e-05]
[1641890653132,6.81513685,3108.2,3108.1,5.402e-05]
[1641890653331,6.81513685,3108.2,3107.6,0.00113684]
[1641890653332,9.55215206,3108.2,3107.6,0.00113684]
[1641890653530,10.26620171,3108.2,3107.6,0.00113684]
[1641890653730,0.8043904,3108.0,3107.5,0.00284212]
[1641890654136,0.8043904,3108.0,3107.3,0.00397896]
[1641890654330,0.8043904,3108.0,3107.5,0.00284212]
[1641890654533,0.8043904,3108.0,3107.3,0.00397896]
[1641890654732,2.73701521,3108.1,3107.3,0.00397896]
[1641890654939,2.73701521,3108.1,3107.3,0.80838896]
[1641890654940,0.8044091,3107.8,3107.3,0.80838896]
[1641890655238,0.6883,3107.8,3107.3,0.00397896]
[1641890655483,0.6883,3107.8,3107.4,0.00341054]
[1641890655783,2.73748888,3107.7,3106.6,0.00795793]
[1641890655986,2.73748888,3107.7,3106.9,18.76]
[1641890656184,2.73748888,3107.7,3107.0,0.08044]
[1641890656386,2.73748888,3107.7,3107.0,0.00568423]
[1641890656584,0.00492432,3108.2,3107.1,0.00511581]
[1641890656794,0.00492432,3108.2,3106.8,0.00682108]
[1641890656986,0.8044192,3107.6,3107.1,0.8044]
[1641890657383,0.8044192,3107.6,3107.2,0.00454739]
[1641890657593,0.75803616,3107.4,3107.2,0.00454739]
[1641890657794,8.20024238,3107.3,3107.2,0.00454739]
[1641890657985,5.0,3107.3,3106.8,0.00682108]
[1641890658186,5.0,3107.3,3106.5,0.00852635]
[1641890658187,0.8046427,3107.1,3106.5,0.00852635]
[1641890658487,5.80471,3107.3,3106.5,0.00852635]
[1641890658685,5.0,3107.3,3106.5,0.00852635]
[1641890658988,0.00573753,3106.8,3106.5,0.00852635]
[1641890659434,0.86588988,3106.9,3106.3,0.0096632]
[1641890659630,0.86588988,3106.9,3106.0,0.31136847]
[1641890659830,2.74107666,3107.3,3106.0,0.31136847]
[1641890659831,2.74107666,3107.3,3106.1,18.76]
[1641890660031,0.00378394,3107.3,3106.5,1.46528299]
[1641890660431,0.80835524,3107.3,3106.6,0.00795793]
[1641890660630,0.00378394,3107.3,3106.6,0.00795793]
[1641890660829,2.73747977,3107.2,3106.6,0.00795793]
[1641890661632,2.73747977,3107.2,3106.5,0.00852635]
[1641890661832,2.73747977,3107.2,3106.3,0.0096632]
[1641890662233,0.72981432,3106.9,3106.3,0.0096632]
[1641890662434,2.73747977,3107.2,3106.3,0.0096632]
[1641890662635,2.73747977,3107.2,3106.7,1.37110184]
[1641890663088,2.73747977,3107.2,3106.8,1.91565108]
[1641890663287,2.73747977,3107.2,3106.8,3.52446108]
[1641890663487,2.73747977,3107.2,3106.9,0.00625266]
[1641890663691,0.73951105,3107.3,3106.9,0.81070266]
[1641890663891,0.73951105,3107.3,3106.9,0.81074266]
[1641890664094,0.73951105,3107.3,3107.0,0.00568423]
[1641890664289,0.0037878,3107.2,3107.0,0.00568423]
[1641890664893,0.0037878,3107.2,3106.9,0.01009743]
[1641890665090,0.0037878,3107.2,3106.9,1.11454743]
[1641890665289,0.0037878,3107.2,3107.0,0.00568423]
[1641890665692,0.0037878,3107.2,3106.8,1.60883]
[1641890665891,0.0037878,3107.2,3107.0,0.66786808]
[1641890666190,0.0037878,3107.2,3106.8,1.90883]
[1641890667035,0.0037878,3107.2,3106.9,1.10444]
[1641890667233,0.0037878,3107.2,3106.9,1.90882]
[1641890667431,0.0037878,3107.2,3106.9,2.24350539]
[1641890667632,0.0037878,3107.2,3106.9,3.08060539]
[1641890667835,3.7212,3108.1,3107.0,19.56432]
[1641890668034,0.00113685,3108.2,3107.6,0.3]
[1641890668234,4.10474805,3108.5,3108.0,0.7436206]
[1641890668437,4.10474805,3108.5,3108.0,20.13975293]
[1641890668631,0.00795793,3108.4,3108.0,20.09275514]
[1641890668834,0.00795793,3108.4,3108.1,1.54372342]
[1641890669032,0.0073895,3108.3,3108.2,3.60407]
[1641890669433,0.0073895,3108.3,3108.2,3.90407]
[1641890669632,0.0073895,3108.3,3108.2,1.10407]
[1641890670234,0.0073895,3108.3,3108.2,1.40407]
[1641890670481,0.0073895,3108.3,3108.2,0.80407]
[1641890671380,0.0073895,3108.3,3108.2,4.10407]
[1641890671982,0.0073895,3108.3,3108.2,4.40407]
[1641890672581,0.0073895,3108.3,3108.2,1.10407]
[1641890672981,0.0073895,3108.3,3108.2,0.3]
[1641890673180,0.0073895,3108.3,3108.1,1.84372342]
[1641890673685,0.7269472,3108.8,3107.2,1.68881]
[1641890673686,0.00682108,3108.2,3107.2,1.68881]
[1641890673888,0.04168433,3108.1,3107.2,1.68881]
[1641890674089,0.04793699,3108.1,3107.4,1.60855]
[1641890674349,0.00568423,3108.0,3107.4,1.60855]
[1641890674545,0.00568423,3108.0,3107.6,1.29916689]
[1641890674750,0.00511581,3107.9,3107.6,1.29916689]
[1641890675144,0.00454738,3107.8,3107.7,18.76]
[1641890675347,0.00454738,3107.8,3107.7,21.29580622]
[1641890675543,0.00454738,3107.8,3107.7,21.59580622]
[1641890675743,0.00454738,3107.8,3107.7,21.89580622]
[1641890676143,0.00454738,3107.8,3107.7,21.86012]
[1641890677845,0.00454738,3107.8,3107.7,21.89699236]
[1641890678077,0.00454738,3107.8,3107.7,21.89166082]
[1641890678276,0.00454738,3107.8,3107.7,21.89837083]
[1641890678879,0.00454738,3107.8,3107.7,23.84933013]
[1641890679078,3.9722,3109.3,3107.9,0.04345408]
[1641890679282,3.20024238,3109.2,3108.4,0.4019695]
[1641890679482,3.20024238,3109.2,3108.3,0.803939]
[1641890679483,3.9722,3109.3,3108.3,0.803939]
[1641890679681,3.9722,3109.3,3108.3,1.42793897]
[1641890679882,0.00795793,3109.2,3108.4,0.5026]
[1641890680088,0.00795793,3109.2,3108.4,1.2698]
[1641890680286,0.00738951,3109.1,3109.0,0.7298323]
[1641890680483,0.00738951,3109.1,3109.0,1.0298323]
[1641890680881,0.00738951,3109.1,3109.0,1.3298323]
[1641890681280,0.00738951,3109.1,3109.0,20.0898323]
[1641890681939,0.00738951,3109.1,3109.0,20.8936623]
[1641890682639,0.00738951,3109.1,3109.0,20.92501066]
[1641890682841,0.00738951,3109.1,3109.0,20.8936623]
[1641890684243,0.00738951,3109.1,3109.0,20.9079162]
[1641890684843,0.00738951,3109.1,3109.0,22.89594642]
[1641890685044,0.00738951,3109.1,3109.0,22.8588755]
[1641890685244,0.00738951,3109.1,3109.0,22.1290432]
[1641890685497,0.00738951,3109.1,3109.0,1.9652132]
[1641890685685,0.00738951,3109.1,3108.4,1.60805]
[1641890685887,0.83291324,3109.0,3108.3,0.13819997]
[1641890686085,0.03554433,3109.0,3108.3,0.13819997]
[1641890686284,0.00625266,3108.9,3108.3,0.13819997]
[1641890686483,0.00625266,3108.9,3108.6,1.45746957]
[1641890686684,0.00568424,3108.8,3108.6,1.45746957]
[1641890687187,0.00511582,3108.7,3108.6,20.55678149]
[1641890687386,1.48789782,3109.7,3108.7,7.28821312]
[1641890687585,2.23434482,3109.9,3108.7,7.28821312]
[1641890687586,12.44225545,3110.2,3108.8,18.76]
[1641890687785,0.00511581,3109.6,3108.9,0.08039]
[1641890687989,0.00511581,3109.6,3109.5,1.4663615]
[1641890688186,12.44225545,3110.2,3109.5,1.7663615]
[1641890688389,8.3375074,3110.2,3109.7,0.80374]
[1641890688687,0.00795792,3110.1,3109.7,1.10374]
[1641890688888,0.00795792,3110.1,3109.5,1.4663615]
[1641890689086,0.0073895,3110.0,3109.7,0.7479216]
[1641890689340,0.0073895,3110.0,3109.7,1.0479216]
[1641890689535,0.00682108,3109.9,3109.7,0.3]
[1641890689735,0.00682108,3109.9,3109.5,1.4663615]
[1641890689736,0.00682108,3109.9,3109.5,1.7663615]
[1641890689934,0.00625265,3109.8,3109.5,1.7663615]
[1641890690134,0.00625265,3109.8,3109.5,2.0663615]
[1641890690337,0.00568423,3109.7,3109.5,2.0663615]
[1641890690741,0.00511581,3109.6,3109.4,0.65755345]
[1641890690943,0.00511581,3109.6,3108.8,0.08039]
[1641890690944,0.05337414,3109.5,3108.8,0.08039]
[1641890691138,0.05792152,3109.5,3108.8,0.08039]
[1641890691341,0.00397896,3109.4,3108.8,0.08039]
[1641890691536,0.00397896,3109.4,3108.2,1.35313562]
[1641890691737,3.726,3109.9,3108.8,1.31703993]
[1641890691738,0.00341054,3109.3,3108.8,1.31703993]
[1641890691938,0.00341054,3109.3,3109.0,0.6977297]
[1641890692140,0.00284211,3109.2,3109.0,0.6977297]
[1641890692337,0.00284211,3109.2,3109.0,0.3]
[1641890692537,3.726,3109.9,3109.0,0.80391]
[1641890692538,0.00227369,3109.1,3109.0,0.80391]
[1641890692741,0.00227369,3109.1,3108.8,1.91703993]
[1641890693211,3.726,3109.9,3108.8,1.91703993]
[1641890693212,0.00170527,3109.0,3108.8,1.91703993]
[1641890693404,0.00170527,3109.0,3108.9,0.66557094]
[1641890693608,3.726,3109.9,3108.9,1.46950094]
[1641890693609,0.80394,3109.8,3108.9,1.46950094]
[1641890694009,0.00454738,3109.5,3108.9,1.46950094]
[1641890694207,0.0029798,3109.1,3108.9,1.46950094]
[1641890694609,0.00170527,3109.0,3108.9,1.46950094]
[1641890694807,0.05206462,3109.0,3108.8,1.91703993]
[1641890695209,0.0029798,3109.1,3108.9,6.75389]
[1641890695409,0.0029798,3109.1,3109.0,0.0804]
[1641890695609,0.0029798,3109.1,3109.0,0.3804]
[1641890695816,0.0029798,3109.1,3109.0,19.1404]
[1641890696211,0.0029798,3109.1,3109.0,0.3804]
[1641890696834,0.0029798,3109.1,3109.0,0.3]
[1641890697034,0.0029798,3109.1,3108.9,20.76073418]
[1641890697431,0.00170527,3109.0,3108.9,20.76073418]
[1641890697835,0.00170527,3109.0,3108.9,20.81687326]
[1641890698033,0.00170527,3109.0,3108.9,2.05687326]
[1641890699637,0.00170527,3109.0,3108.9,20.81687326]
[1641890699837,0.00170527,3109.0,3108.9,21.81687326]
[1641890700037,0.00170527,3109.0,3108.9,3.05687326]
[1641890700239,0.00170527,3109.0,3108.9,2.05687326]
[1641890701091,0.00170527,3109.0,3108.9,23.31687326]
[1641890701687,0.00170527,3109.0,3108.9,20.81687326]
[1641890702594,0.00170527,3109.0,3108.9,2.05687326]
[1641890702789,0.00170527,3109.0,3108.9,20.81687326]
[1641890703390,0.00170527,3109.0,3108.9,2.05687326]
[1641890703592,0.00170527,3109.0,3108.9,2.08747138]
[1641890703792,0.00170527,3109.0,3108.9,20.84747138]
[1641890704241,0.00170527,3109.0,3108.9,2.08747138]
[1641890705035,0.00170527,3109.0,3108.9,10.33747138]
[1641890705235,4.6019074,3110.2,3109.3,0.80372]
[1641890705437,4.6019074,3110.2,3109.7,0.80364]
[1641890705636,0.00454738,3110.2,3109.8,7.25]
[1641890705842,0.00454738,3110.2,3109.9,18.76]
[1641890706036,0.00170527,3110.1,3110.0,8.59725111]
[1641890706241,0.00170527,3110.1,3110.0,3.80555111]
[1641890706435,0.00170527,3110.1,3110.0,4.24369019]
[1641890706638,0.00454738,3110.2,3110.1,7.25]
[1641890706837,0.00454738,3110.2,3110.1,8.05062778]
[1641890707037,3.2087557,3111.3,3110.2,18.76]
[1641890707241,5.39369782,3111.4,3110.6,19.56337]
[1641890707438,0.00682109,3111.3,3110.6,19.56337]
[1641890707638,0.00682109,3111.3,3110.9,1.15651475]
[1641890707839,0.00625266,3111.2,3110.6,1.15950908]
[1641890708093,2.74135513,3111.2,3110.9,1.90675]
[1641890708298,0.00568424,3111.1,3110.6,0.05613908]
[1641890708495,0.00568424,3111.1,3110.0,5.169]
[1641890708496,3.21443994,3111.1,3110.0,5.169]
[1641890708694,0.00511582,3111.0,3110.0,5.97266]
[1641890708896,0.9378713,3110.8,3110.1,1.25085657]
[1641890709290,0.00341055,3110.7,3110.1,1.25085657]
[1641890709492,0.32131509,3110.5,3110.1,1.25085657]
[1641890709694,0.32131509,3110.5,3109.8,7.57992]
[1641890709896,0.00170528,3110.4,3109.1,0.08037]
[1641890710097,0.05215549,3110.4,3109.9,0.00113684]
[1641890710297,0.00113685,3110.3,3109.2,0.00511581]
[1641890710494,0.00113685,3110.3,3108.9,0.00682108]
[1641890710495,0.803976,3110.2,3108.9,0.00682108]
[1641890710694,0.80512685,3110.3,3109.2,0.86022586]
[1641890710695,0.77351384,3110.0,3109.2,0.86022586]
[1641890711094,0.77351384,3110.0,3109.4,1.22389828]
[1641890711296,0.00113685,3110.3,3109.4,1.22389828]
[1641890711500,0.00113685,3110.3,3109.5,0.00341054]
[1641890711742,0.00113685,3110.3,3109.6,0.01848572]
[1641890711934,0.00113685,3110.3,3109.7,0.80374]
[1641890712132,2.73623932,3110.3,3109.7,0.80601369]
[1641890712332,3.51269648,3110.3,3109.8,0.00170527]
[1641890712735,3.51269648,3110.3,3109.5,0.00341054]
[1641890712935,3.48364125,3110.2,3109.5,0.00341054]
[1641890713632,0.00667701,3110.1,3109.5,0.00341054]
[1641890713833,2.74177948,3110.1,3109.5,0.00341054]
[1641890714038,0.90335701,3109.6,3109.5,0.00341054]
[1641890714633,0.90335701,3109.6,3109.0,0.00625265]
[1641890714833,0.32131509,3109.1,3108.7,0.00795792]
[1641890715133,1.01133456,3109.1,3108.7,0.81196792]
[1641890715591,1.01133456,3109.1,3108.8,18.7673895]
[1641890715592,0.32131509,3109.1,3108.8,18.7673895]
[1641890715790,0.32131509,3109.1,3108.8,20.3751995]
[1641890715988,0.32131509,3109.1,3108.9,0.00682108]
[1641890716190,0.32131509,3109.1,3109.0,2.6804]
[1641890716394,0.32131509,3109.1,3109.0,21.7404]
[1641890716594,0.32131509,3109.1,3109.0,22.74665265]
[1641890716791,0.32131509,3109.6,3109.1,6.85]
[1641890716994,0.32131509,3109.6,3109.3,1.60743]
[1641890717192,0.32131509,3109.6,3109.4,0.08039]
[1641890717392,0.32131509,3109.6,3109.4,0.08436896]
[1641890717591,0.32131509,3109.6,3109.5,2.95341054]
[1641890717794,0.32131509,3109.6,3109.5,7.05341054]
[1641890717993,0.32131509,3109.6,3109.5,8.99301245]
[1641890718393,0.32131509,3109.6,3109.5,10.04915153]
[1641890718794,0.32131509,3109.6,3109.5,10.08830724]
[1641890718994,0.32131509,3109.6,3109.5,10.16522479]
[1641890719244,0.32627664,3109.6,3109.5,10.12954153]
[1641890719641,0.32627664,3109.6,3109.5,13.57898083]
[1641890719842,0.32627664,3109.6,3109.5,13.610673]
[1641890720041,0.32627664,3109.6,3109.5,14.06115733]
[1641890720242,0.32627664,3109.6,3109.5,14.09363009]
[1641890720445,0.32627664,3109.6,3109.5,32.85363009]
[1641890720642,0.32627664,3109.6,3109.5,32.82115733]
[1641890721444,0.00113685,3110.3,3109.9,0.80357]
[1641890721646,0.00113685,3110.3,3110.0,3.45219709]
[1641890721850,0.00113685,3110.3,3110.1,0.4820976]
[1641890722046,0.00113685,3110.3,3110.2,29.74597657]
[1641890722244,0.00113685,3110.3,3110.2,30.34830657]
[1641890722443,0.00113685,3110.3,3110.2,33.24101647]
[1641890722646,4.10401207,3111.2,3111.1,1.2449532]
[1641890723087,4.10401207,3111.2,3111.1,1.5449532]
[1641890723289,2.73508241,3111.6,3111.1,1.5449532]
[1641890723685,0.00682108,3111.5,3111.1,1.5449532]
[1641890724088,3.58068569,3111.6,3111.1,1.5449532]
[1641890724089,0.00625266,3111.4,3111.1,1.5449532]
[1641890724286,0.00625266,3111.4,3111.1,1.55895903]
[1641890724490,0.00568424,3111.3,3111.1,0.31400583]
[1641890724787,0.00511581,3111.2,3111.1,0.31400583]
[1641890724988,0.00511581,3111.2,3111.1,0.01400583]
[1641890728053,2.4,3111.1,3110.8,1.60682]
[1641890728256,2.4,3111.1,3109.4,3.1219]
[1641890728257,2.44387897,3111.1,3110.2,2.28963]
[1641890728454,0.00397897,3111.0,3110.2,0.6827]
[1641890728656,0.00397897,3111.0,3110.2,1.48634]
[1641890728853,0.00341054,3110.9,3110.2,1.48634]
[1641890729255,0.67614281,3110.6,3110.2,1.48634]
[1641890729457,0.67614281,3110.6,3110.2,0.6827]
[1641890729664,0.00113685,3110.5,3110.2,0.6827]
[1641890730500,3.53979983,3110.5,3110.2,0.6827]
[1641890730890,2.73596983,3110.5,3110.2,0.6827]
[1641890731089,2.73483298,3110.4,3110.2,0.6827]
[1641890732299,2.73596983,3110.5,3110.2,0.6827]
[1641890733895,2.73596983,3110.5,3110.2,0.9827]
[1641890734335,2.74078503,3110.5,3110.2,0.6827]
[1641890734732,2.74078503,3110.5,3109.8,1.10375]
[1641890735137,2.74078503,3110.5,3109.9,0.00227369]
[1641890735337,2.73483298,3110.4,3109.9,0.00227369]
[1641890736435,2.73483298,3110.4,3109.9,0.80598369]
[1641890736633,2.73483298,3110.4,3109.9,1.10598369]
[1641890736834,2.73483298,3110.4,3110.0,0.00170527]
[1641890737638,0.00595205,3110.5,3110.1,0.80367]
[1641890738094,0.00595205,3110.5,3110.1,1.10367]
[1641890738987,0.00595205,3110.5,3110.1,1.585815]
[1641890739186,0.0048105,3110.4,3110.1,1.585815]
[1641890739588,0.0048105,3110.4,3110.2,1.31000022]
[1641890740789,0.0048105,3110.4,3110.2,1.39037022]
[1641890740990,1.14137435,3110.4,3110.1,0.562685]
[1641890741197,4.35,3110.2,3108.3,3.9647]
[1641890741395,0.04242513,3110.1,3109.0,1.60772]
[1641890741592,4.36222919,3110.2,3109.4,0.00341054]
[1641890741593,0.80403,3110.0,3109.4,0.00341054]
[1641890741843,7.68072919,3110.2,3109.4,0.00341054]
[1641890742042,7.68072919,3110.2,3109.4,0.7043383]
[1641890742244,7.6685,3110.2,3109.4,0.7043383]
[1641890742443,0.00170527,3110.3,3109.5,0.0589812]
[1641890742844,2.73576148,3109.9,3109.6,0.00227369]
[1641890743043,2.73576148,3109.9,3109.6,1.46512447]
[1641890743343,2.73576148,3109.9,3109.7,0.00170527]
[1641890743543,0.00170527,3110.3,3109.7,1.13521868]
[1641890743743,0.00170527,3110.3,3109.8,0.00622705]
[1641890743945,0.00113685,3110.2,3109.8,0.48329145]
[1641890744143,0.00113685,3110.2,3109.9,0.3]
[1641890744342,4.10319171,3111.0,3109.9,0.3]
[1641890744343,0.00170527,3110.3,3109.9,0.3]
[1641890744543,0.00170527,3110.3,3109.8,0.00113685]
[1641890744743,0.00113685,3110.2,3109.8,0.00113685]
[1641890745147,0.00397897,3110.7,3109.8,0.00113685]
[1641890745349,2.73932522,3110.7,3110.2,0.80362]
[1641890745598,0.00341054,3110.6,3110.2,0.80362]
[1641890745796,0.00341054,3110.6,3109.9,1.60722]
[1641890745797,0.00341054,3110.6,3109.9,1.90722]
[1641890745995,0.00284212,3110.5,3109.9,1.90722]
[1641890746298,0.80368,3110.7,3109.9,1.90722]
[1641890746299,0.0022737,3110.4,3109.9,1.90722]
[1641890746697,1.72447028,3110.9,3109.9,1.90722]
[1641890746698,0.00170527,3110.3,3109.9,1.90722]
[1641890746898,0.00170527,3110.3,3109.9,0.3]
[1641890747099,1.60745,3110.8,3109.9,0.3]
[1641890747100,0.00113685,3110.2,3109.9,0.3]
[1641890747300,0.00113685,3110.2,3109.8,0.30113685]
[1641890747500,0.00397897,3110.7,3109.8,0.00113685]
[1641890747900,0.00341054,3110.6,3109.8,0.00113685]
[1641890748103,0.80376,3110.4,3109.8,0.00113685]
[1641890748304,4.97749092,3110.3,3109.8,0.00113685]
[1641890748501,4.97919619,3110.3,3109.8,0.00113685]
[1641890748700,0.00113685,3110.2,3109.8,0.00113685]
[1641890748902,2.7364831,3110.2,3109.8,0.00113685]
[1641890750945,0.00113685,3110.2,3110.1,0.3]
[1641890751137,0.00113685,3110.2,3109.8,0.00113685]
[1641890751543,0.00113685,3110.2,3109.8,0.30113685]